fUSD/lending_fUSD_20251223
["ID","MTS","AMOUNT","RATE_DAILY","PERIOD"]
[399537745,1766461841932,-150.0,0.00016699,2]
[399537747,1766461841941,-500.0,0.00016726,2]
[399537749,1766461841950,-500.0,0.00016726,2]
[399537751,1766461841959,-500.0,0.00016726,2]
[399537753,1766461841968,-442.0,0.00016726,2]
[399537755,1766461841977,-500.0,0.00016726,2]
[399537757,1766461841986,-150.0,0.00016726,2]
[399537759,1766461841995,-500.0,0.00016726,2]
[399537761,1766461842007,-150.0,0.00016726,2]
[399537763,1766461842016,-500.0,0.00016726,2]
[399537765,1766461842026,-572.0,0.00016726,2]
[399537767,1766461842035,-500.0,0.00016726,2]
[399537769,1766461842044,-291.45263024,0.00016753,2]
[399537771,1766461842053,-500.0,0.00016754,2]
[399537773,1766461842061,-500.0,0.00016754,2]
[399537775,1766461842070,-500.0,0.00016754,2]
[399537777,1766461842080,-442.0,0.00016754,2]
[399537779,1766461842088,-500.0,0.00016754,2]
[399537781,1766461842097,-209.06429338,0.00016754,2]
[399537783,1766461842106,-500.0,0.00016754,2]
[399537785,1766461842115,-150.0,0.00016754,2]
[399537787,1766461842125,-566.6967401,0.00016754,2]
[399537789,1766461842134,-572.0,0.00016754,2]
[399537791,1766461842143,-500.0,0.00016754,2]
[399537793,1766461842152,-500.0,0.00016781,2]
[399537795,1766461842161,-546.23436923,0.00016781,2]
[399537797,1766461842170,-500.0,0.00016781,2]
[399537799,1766461842179,-442.0,0.00016781,2]
[399537801,1766461842188,-500.0,0.00016781,2]
[399537803,1766461842198,-150.0,0.00016781,2]
[399537805,1766461842207,-500.0,0.00016781,2]
[399537807,1766461842216,-572.0,0.00016781,2]
[399537809,1766461842226,-500.0,0.00016781,2]
[399537811,1766461842234,-500.0,0.00016809,2]
[399537813,1766461842244,-500.0,0.00016809,2]
[399537815,1766461842257,-442.0,0.00016809,2]
[399537817,1766461842266,-500.0,0.00016809,2]
[399537819,1766461842275,-150.0,0.00016809,2]
[399537821,1766461842285,-500.0,0.00016809,2]
[399537823,1766461842295,-572.0,0.00016809,2]
[399537825,1766461842304,-500.0,0.00016809,2]
[399537827,1766461842313,-216.0,0.00016821,2]
[399537829,1766461842324,-500.0,0.00016836,2]
[399537831,1766461842334,-500.0,0.00016836,2]
[399537833,1766461842343,-442.0,0.00016836,2]
[399537835,1766461842352,-500.0,0.00016836,2]
[399537837,1766461842361,-235.25828516,0.00016836,2]
[399537839,1766461842370,-500.0,0.00016836,2]
[399537841,1766461842379,-572.0,0.00016836,2]
[399537843,1766461842388,-500.0,0.00016836,2]
[399537845,1766461842400,-152.3404577,0.00016838,2]
[399537847,1766461842409,-640.24385345,0.0001684,2]
[399537849,1766461842418,-500.0,0.00016863,2]
[399537852,1766461842427,-500.0,0.00016863,2]
[399537853,1766461842436,-442.0,0.00016863,2]
[399537856,1766461842446,-500.0,0.00016863,2]
[399537858,1766461842455,-500.0,0.00016863,2]
[399537860,1766461842464,-572.0,0.00016863,2]
[399537861,1766461842473,-500.0,0.00016863,2]
[399537863,1766461842482,-200.0,0.00016864,2]
[399537865,1766461842490,-1557.0,0.00016865,2]
[399537868,1766461842500,-500.0,0.00016891,2]
[399537870,1766461842509,-352.28136913,0.00016891,2]
[399537872,1766461842518,-442.0,0.00016891,2]
[399537874,1766461842527,-500.0,0.00016891,2]
[399537876,1766461842536,-500.0,0.00016891,2]
[399537878,1766461842545,-572.0,0.00016891,2]
[399537880,1766461842554,-500.0,0.00016891,2]
[399537882,1766461842563,-10000.0,0.000169,2]
[399537884,1766461842572,-71836.82238336,0.000169,2]
[399537886,1766461842580,-204.73820808,0.000169,2]
[399537888,1766461842589,-746.04639912,0.000169,2]
[399537889,1766461842598,-460.0,0.000169,5]
[399537891,1766461842607,-190.32054747,0.000169,2]
[399537893,1766461842616,-457.08434458,0.000169,2]
[399537895,1766461842625,-500.0,0.000169,2]
[399537897,1766461842634,-500.0,0.000169,2]
[399537899,1766461842643,-500.0,0.000169,2]
[399537901,1766461842653,-500.0,0.000169,2]
[399537903,1766461842663,-500.0,0.000169,2]
[399537905,1766461842674,-316.28731491,0.000169,2]
[399537907,1766461842684,-500.0,0.00016918,2]
[399537909,1766461842695,-442.0,0.00016918,2]
[399537912,1766461842705,-500.0,0.00016918,2]
[399537913,1766461842714,-500.0,0.00016918,2]
[399537916,1766461842725,-572.0,0.00016918,2]
[399537918,1766461842734,-582.47123281,0.00016918,2]
[399537920,1766461842743,-500.0,0.00016946,2]
[399537922,1766461842751,-442.0,0.00016946,2]
[399537924,1766461842760,-645.54989505,0.00016946,2]
[399537926,1766461842769,-500.0,0.00016946,2]
[399537928,1766461842778,-572.0,0.00016946,2]
[399537930,1766461842787,-190.24545095,0.00016973,2]
[399537932,1766461842796,-500.0,0.00016973,2]
[399537934,1766461842805,-500.0,0.00016973,2]
[399537936,1766461842813,-500.0,0.00016973,2]
[399537938,1766461842822,-500.0,0.00016973,2]
[399537940,1766461842831,-500.0,0.00016973,2]
[399537942,1766461842840,-500.0,0.00016973,2]
[399537944,1766461842849,-500.0,0.00016973,2]
[399537946,1766461842857,-500.0,0.00016973,2]
[399537948,1766461842866,-500.0,0.00016973,2]
[399537950,1766461842875,-500.0,0.00016973,2]
[399537952,1766461842884,-500.0,0.00016973,2]
[399537954,1766461842893,-500.0,0.00016973,2]
[399537956,1766461842902,-500.0,0.00016973,2]
[399537958,1766461842911,-500.0,0.00016973,2]
[399537960,1766461842919,-500.0,0.00016973,2]
[399537962,1766461842928,-500.0,0.00016973,2]
[399537964,1766461842937,-500.0,0.00016973,2]
[399537966,1766461842945,-500.0,0.00016973,2]
[399537968,1766461842954,-500.0,0.00016973,2]
[399537970,1766461842963,-500.0,0.00016973,2]
[399537972,1766461842972,-500.0,0.00016973,2]
[399537974,1766461842981,-500.0,0.00016973,2]
[399537976,1766461842990,-500.0,0.00016973,2]
[399537978,1766461843000,-500.0,0.00016973,2]
[399537980,1766461843009,-500.0,0.00016973,2]
[399537982,1766461843018,-499.4006942,0.00016973,2]
[399537984,1766461843027,-500.0,0.00016973,2]
[399537986,1766461843037,-500.0,0.00016973,2]
[399537988,1766461843046,-500.0,0.00016973,2]
[399537990,1766461843055,-500.0,0.00016973,2]
[399537992,1766461843064,-500.0,0.00016973,2]
[399537994,1766461843074,-500.0,0.00016973,2]
[399537996,1766461843083,-500.0,0.00016973,2]
[399537998,1766461843093,-500.0,0.00016973,2]
[399538000,1766461843102,-500.0,0.00016973,2]
[399538002,1766461843112,-500.0,0.00016973,2]
[399538004,1766461843122,-169.79069321,0.00016973,2]
[399538006,1766461843131,-647.77326909,0.00016973,2]
[399538008,1766461843141,-442.0,0.00016973,2]
[399538010,1766461843150,-500.0,0.00016973,2]
[399538012,1766461843159,-572.0,0.00016973,2]
[399538014,1766461843168,-500.0,0.00016973,2]
[399538016,1766461843177,-150.0,0.00016973,2]
[399538018,1766461843187,-5842.967633,0.00016995,2]
[399538020,1766461843196,-920.9515841,0.00016995,2]
[399538022,1766461843205,-151.0,0.00016997,2]
[399538024,1766461843215,-300.0,0.00016999,2]
[399538026,1766461843224,-300.0,0.00016999,2]
[399538028,1766461843233,-300.0,0.00016999,2]
[399538030,1766461843243,-574.58954949,0.00016999,2]
[399538032,1766461843256,-819986.87268066,0.00017,2]
[399538063,1766461843561,-782.96342547,0.00017,2]
[399538076,1766461843667,-341.04,0.00017,2]
[399538163,1766461846509,-769.79160068,0.00017,2]
[399538164,1766461846520,-1681.28327184,0.00017,2]
[399538165,1766461846561,-461.74759373,0.00017,2]
[399538166,1766461846571,-4491.83851285,0.00017,2]
[399538167,1766461846582,-2197.04172547,0.00017,2]
[399538168,1766461846615,-3861.59162182,0.00017,2]
[399538169,1766461846626,-3379.01848402,0.00017,2]
[399538170,1766461846669,-2664.89357805,0.00017,2]
[399538172,1766462097150,163.18,7.898e-05,2]
[399538173,1766462097355,163.18,9.027e-05,2]
[399538174,1766462172084,172.8,0.000226,120]
[399538177,1766463031360,-719.65977982,0.00010055,2]
[399538178,1766463031370,-188.89599329,0.00010055,2]
[399538179,1766463031382,-44.10400671,0.00010055,2]
[399538180,1766463031391,-163.18,0.00010155,2]
[399538181,1766463031401,-163.18,0.00011283,2]
[399538182,1766463031410,-10.82558241,0.00012412,2]
[399538183,1766463031422,-152.35441759,0.00012412,2]
[399538184,1766463031431,-157.63,0.00013104,2]
[399538185,1766463031440,-1500.0,0.00013129,2]
[399538186,1766463031449,-3675.7,0.00013252,2]
[399538187,1766463031458,-246.667,0.00013252,2]
[399538188,1766463031467,-2329.7563889,0.00013431,2]
[399538189,1766463031479,-6793.37044292,0.00013431,2]
[399538190,1766463031487,-325.2548743,0.00013431,2]
[399538191,1766463031496,-499.99,0.00013515,2]
[399538192,1766463031506,-999.99,0.00013515,2]
[399538193,1766463031515,-151.0,0.00013515,2]
[399538194,1766463031525,-151.0,0.00013515,2]
[399538195,1766463031535,-151.0,0.00013515,2]
[399538196,1766463031544,-500.0,0.00013515,2]
[399538197,1766463031554,-151.0,0.00013515,2]
[399538198,1766463031568,-500.0,0.00013515,2]
[399538200,1766463031578,-151.0,0.00013515,2]
[399538201,1766463031587,-500.0,0.00013515,2]
[399538203,1766463031596,-151.0,0.00013515,2]
[399538206,1766463031606,-500.0,0.00013515,2]
[399538208,1766463031618,-151.0,0.00013515,2]
[399538210,1766463031627,-500.0,0.00013515,2]
[399538212,1766463031639,-525.58508004,0.00013515,2]
[399538213,1766463031648,-151.0,0.00013515,2]
[399538216,1766463031658,-500.0,0.00013515,2]
[399538217,1766463031667,-151.0,0.00013515,2]
[399538219,1766463031677,-184.2911423,0.00013515,2]
[399538221,1766463031686,-151.0,0.00013515,2]
[399538223,1766463031699,-151.0,0.00013515,2]
[399538224,1766463031708,-200.0,0.00013515,2]
[399538226,1766463031718,-151.0,0.0001352,2]
[399538228,1766463031728,-151.0,0.0001352,2]
[399538230,1766463032147,-1544.09,0.0001352,2]
[399538231,1766463032160,-514.54,0.0001352,2]
[399538232,1766463032169,-1055.12398537,0.0001352,2]
[399538233,1766463032187,-2623.35601463,0.0001352,2]
[399538234,1766463032196,-3502.26,0.0001352,2]
[399538235,1766463032204,-150.99,0.0001352,2]
[399538236,1766463032213,-167.40851347,0.00013522,2]
[399538237,1766463032222,-624.37693552,0.00013522,2]
[399538238,1766463032231,-208.59539927,0.00013522,2]
[399538239,1766463032239,-185.67900321,0.00013522,2]
[399538240,1766463032248,-500.0,0.00013522,2]
[399538241,1766463032257,-311.56155089,0.00013522,2]
[399538242,1766463032266,-407.6376526,0.00013522,2]
[399538243,1766463032275,-500.0,0.00013522,2]
[399538244,1766463032283,-500.0,0.00013522,2]
[399538245,1766463032292,-500.0,0.00013522,2]
[399538246,1766463032302,-500.0,0.00013522,2]
[399538247,1766463032311,-500.0,0.00013522,2]
[399538248,1766463032320,-500.0,0.00013522,2]
[399538249,1766463032329,-500.0,0.00013522,2]
[399538250,1766463032338,-500.0,0.00013522,2]
[399538251,1766463032347,-500.0,0.00013522,2]
[399538252,1766463032359,-500.0,0.00013522,2]
[399538253,1766463032370,-500.0,0.00013522,2]
[399538254,1766463032379,-500.0,0.00013522,2]
[399538255,1766463032389,-500.0,0.00013522,2]
[399538256,1766463032398,-500.0,0.00013522,2]
[399538257,1766463032408,-500.0,0.00013522,2]
[399538258,1766463032417,-500.0,0.00013522,2]
[399538259,1766463032426,-500.0,0.00013522,2]
[399538260,1766463032435,-500.0,0.00013522,2]
[399538261,1766463032444,-493.53669788,0.00013522,2]
[399538262,1766463032453,-500.0,0.00013522,2]
[399538263,1766463032462,-500.0,0.00013522,2]
[399538264,1766463032471,-500.0,0.00013522,2]
[399538265,1766463032480,-9999.99,0.00013522,2]
[399538266,1766463032490,-500.0,0.00013522,2]
[399538267,1766463032499,-30249.87504824,0.00013523,2]
[399538268,1766463032511,-67630.09599708,0.00013523,2]
[399538269,1766463032521,-565.39403671,0.00013523,2]
[399538270,1766463032533,-2332.08059724,0.00013523,2]
[399538271,1766463032551,-433.60596329,0.00013523,2]
[399538272,1766463032564,-497.76627144,0.00013523,2]
[399538276,1766463037451,-493.1082017,0.00013431,2]
[399538277,1766463037461,-357.3036,0.00013531,2]
[399538278,1766463037471,-1000.0,0.00013531,2]
[399538279,1766463037480,-491.0,0.00013539,2]
[399538280,1766463037489,-163.18,0.0001354,2]
[399538281,1766463037499,-199.36,0.00013633,2]
[399538282,1766463037508,-500.0,0.00013698,2]
[399538283,1766463037518,-500.0,0.00013698,2]
[399538284,1766463037527,-500.0,0.00013698,2]
[399538285,1766463037536,-500.0,0.00013698,2]
[399538286,1766463037546,-200.0,0.00013699,2]
[399538287,1766463037555,-230.48319557,0.00013727,2]
[399538288,1766463037568,-301.22772183,0.00013808,2]
[399538289,1766463037578,-1164.33603674,0.00013816,2]
[399538290,1766463037600,-594.16393369,0.00013816,2]
[399538291,1766463037621,-419.12847376,0.00013816,2]
[399538292,1766463037641,-6945.49838761,0.00013816,2]
[399538293,1766463037651,-200.0,0.00013907,2]
[399538294,1766463037660,-157.63,0.00013923,2]
[399538295,1766463037669,-493.10820163,0.00014069,2]
[399538297,1766463037678,-500.0,0.00014173,2]
[399538298,1766463037687,-500.24988524,0.00014173,2]
[399538299,1766463037696,-500.0,0.00014173,2]
[399538300,1766463037704,-216.36061645,0.00014173,2]
[399538301,1766463037713,-500.0,0.00014173,2]
[399538302,1766463037722,-9123.1268318,0.00014202,2]
[399538304,1766463037732,-9123.1268318,0.00014587,2]
[399538306,1766463037741,-163.18,0.00014668,2]
[399538308,1766463037751,-157.63,0.00014742,2]
[399538310,1766463037760,-936.04,0.00014875,2]
[399538312,1766463037769,-9123.1268318,0.00014973,2]
[399538313,1766463037778,-3650.0,0.00015068,2]
[399538314,1766463037787,-228.067,0.00015185,2]
[399538315,1766463037796,-163.375,0.00015185,2]
[399538316,1766463037805,-3457.0,0.00015185,2]
[399538317,1766463037814,-1326.0,0.00015185,2]
[399538318,1766463037823,-1609.0,0.00015185,2]
[399538319,1766463037833,-612.0,0.00015185,2]
[399538320,1766463037842,-1263.0,0.00015185,2]
[399538321,1766463037851,-518.0,0.00015185,2]
[399538322,1766463037860,-912.018,0.00015185,2]
[399538323,1766463037872,-1198.0,0.00015185,2]
[399538324,1766463037881,-2430.0,0.00015185,2]
[399538325,1766463037890,-564.0,0.00015185,2]
[399538326,1766463037899,-322.6107,0.00015196,2]
[399538327,1766463037908,-574.12855637,0.00015196,2]
[399538328,1766463037917,-151.0,0.00015196,2]
[399538329,1766463037926,-573.77623896,0.00015196,2]
[399538330,1766463037935,-721.12765535,0.00015196,2]
[399538331,1766463037944,-620.0,0.00015196,2]
[399538332,1766463037953,-1108.0,0.00015196,2]
[399538333,1766463037963,-578.20924308,0.00015196,2]
[399538334,1766463037971,-9123.1268318,0.00015358,2]
[399538335,1766463037980,-157.63,0.00015561,2]
[399538336,1766463037990,-9123.1268318,0.00015744,2]
[399538337,1766463038000,-595.37131296,0.00015744,2]
[399538338,1766463038009,-163.18,0.00015797,2]
[399538339,1766463038019,-999.0,0.00015825,3]
[399538340,1766463038028,-6561.0,0.00015877,2]
[399538341,1766463038038,-3790.86727887,0.00016129,2]
[399538342,1766463038068,-1887.00000252,0.00016129,2]
[399538348,1766463039558,-558.998689,0.00016129,2]
[399538349,1766463039572,-1753.74453862,0.00016129,2]
[399538350,1766463039664,-1128.95967044,0.00016129,2]
[399538351,1766463039824,-3.55665235,0.00016129,2]
[399538352,1766463039833,-207.4,0.00016254,2]
[399538353,1766463039842,-248.91834765,0.00016292,2]
[399538354,1766463039854,-368.48170389,0.00016292,2]
[399538355,1766463039863,-157.63,0.0001638,2]
[399538356,1766463039872,-500.0,0.00016438,2]
[399538357,1766463039881,-500.0,0.00016438,2]
[399538358,1766463039890,-500.0,0.00016438,2]
[399538359,1766463039899,-406.90300178,0.00016438,2]
[399538360,1766463039907,-500.0,0.00016438,2]
[399538361,1766463039917,-5683.4,0.00016438,2]
[399538362,1766463039926,-600.0,0.00016438,2]
[399538363,1766463039935,-10303.65,0.00016438,2]
[399538364,1766463039944,-1219.58,0.00016438,2]
[399538365,1766463039953,-1219.58,0.00016438,2]
[399538366,1766463039962,-1219.85,0.00016438,2]
[399538367,1766463039971,-2435.48,0.00016438,2]
[399538368,1766463039981,-1219.58,0.00016438,2]
[399538370,1766463039990,-554.01,0.00016438,2]
[399538372,1766463039999,-2438.51,0.00016438,2]
[399538374,1766463040008,-1219.58,0.000165,2]
[399538376,1766463040017,-9123.1268318,0.00016515,2]
[399538379,1766463040305,-215.0,0.00016549,2]
[399538380,1766463040315,-215.0,0.00016563,2]
[399538381,1766463040324,-334.5472959,0.00016565,2]
[399538382,1766463040333,-151.0,0.00016565,2]
[399538383,1766463040343,-317.19636672,0.00016601,2]
[399538384,1766463040352,-215.0,0.00016604,2]
[399538385,1766463040362,-215.0,0.00016638,2]
[399538386,1766463040371,-1948.6765329,0.0001666,2]
[399538387,1766463040380,-215.0,0.00016675,2]
[399538388,1766463040389,-785.484978,0.00016689,2]
[399538389,1766463040399,-150.0,0.00016699,2]
[399538390,1766463040408,-150.0,0.00016699,2]
[399538391,1766463040418,-201.41254181,0.00016699,2]
[399538392,1766463040427,-500.0,0.00016699,2]
[399538393,1766463040436,-500.0,0.00016699,2]
[399538394,1766463040446,-150.0,0.00016699,2]
[399538395,1766463040455,-150.0,0.00016699,2]
[399538396,1766463040465,-150.0,0.00016699,2]
[399538397,1766463040475,-500.0,0.00016699,2]
[399538398,1766463040483,-500.0,0.00016726,2]
[399538399,1766463040493,-500.0,0.00016726,2]
[399538400,1766463040502,-150.0,0.00016726,2]
[399538401,1766463040512,-500.0,0.00016726,2]
[399538402,1766463040521,-369.87706963,0.00016754,2]
[399538403,1766463040530,-500.0,0.00016754,2]
[399538404,1766463040540,-200.0,0.00016754,2]
[399538405,1766463040549,-500.0,0.00016754,2]
[399538406,1766463040559,-215.0,0.00016781,2]
[399538407,1766463040571,-500.0,0.00016781,2]
[399538408,1766463040580,-500.0,0.00016781,2]
[399538409,1766463040589,-232.0,0.000168,2]
[399538410,1766463040599,-500.0,0.00016809,2]
[399538411,1766463040609,-500.0,0.00016809,2]
[399538412,1766463040619,-500.0,0.00016836,2]
[399538413,1766463040629,-500.0,0.00016836,2]
[399538414,1766463040640,-640.24385345,0.0001684,2]
[399538415,1766463040651,-152.3404577,0.00016841,2]
[399538416,1766463040661,-215.0,0.00016848,2]
[399538417,1766463040671,-500.0,0.00016863,2]
[399538418,1766463040681,-500.0,0.00016863,2]
[399538419,1766463040702,-200.0,0.00016864,2]
[399538420,1766463040712,-500.0,0.00016891,2]
[399538421,1766463040721,-500.0,0.00016891,2]
[399538422,1766463040730,-10000.0,0.000169,2]
[399538423,1766463040740,-9123.1268318,0.000169,2]
[399538424,1766463040749,-190.32054747,0.000169,2]
[399538425,1766463040758,-798.7206205,0.000169,2]
[399538426,1766463040767,-204.73820807,0.000169,2]
[399538427,1766463040776,-497.36426608,0.000169,2]
[399538428,1766463040785,-215.0,0.00016903,2]
[399538429,1766463040794,-500.0,0.00016918,2]
[399538430,1766463040803,-500.0,0.00016918,2]
[399538431,1766463040812,-215.0,0.00016939,2]
[399538432,1766463040822,-325.25487424,0.00016942,2]
[399538433,1766463040831,-500.0,0.00016946,2]
[399538434,1766463040840,-500.0,0.00016946,2]
[399538435,1766463040850,-500.0,0.00016973,2]
[399538436,1766463040859,-500.0,0.00016973,2]
[399538437,1766463040868,-500.0,0.00016973,2]
[399538438,1766463040878,-500.0,0.00016973,2]
[399538439,1766463040887,-500.0,0.00016973,2]
[399538440,1766463040896,-367.89785786,0.00016973,2]
[399538441,1766463040905,-500.0,0.00016973,2]
[399538442,1766463040914,-500.0,0.00016973,2]
[399538443,1766463040923,-500.0,0.00016973,2]
[399538444,1766463040932,-500.0,0.00016973,2]
[399538445,1766463040941,-500.0,0.00016973,2]
[399538446,1766463040951,-500.0,0.00016973,2]
[399538447,1766463040960,-500.0,0.00016973,2]
[399538448,1766463040969,-500.0,0.00016973,2]
[399538449,1766463040978,-500.0,0.00016973,2]
[399538450,1766463040987,-500.0,0.00016973,2]
[399538451,1766463040996,-500.66742167,0.00016973,2]
[399538452,1766463041005,-500.0,0.00016973,2]
[399538453,1766463041014,-500.0,0.00016973,2]
[399538454,1766463041023,-500.0,0.00016973,2]
[399538455,1766463041032,-500.0,0.00016973,2]
[399538456,1766463041041,-500.0,0.00016973,2]
[399538457,1766463041050,-500.0,0.00016973,2]
[399538458,1766463041060,-500.0,0.00016973,2]
[399538459,1766463041069,-500.0,0.00016973,2]
[399538460,1766463041078,-500.0,0.00016973,2]
[399538461,1766463041087,-500.0,0.00016973,2]
[399538462,1766463041096,-500.0,0.00016973,2]
[399538463,1766463041105,-500.0,0.00016973,2]
[399538464,1766463041115,-500.0,0.00016973,2]
[399538465,1766463041126,-500.0,0.00016973,2]
[399538466,1766463041135,-500.0,0.00016973,2]
[399538467,1766463041144,-500.0,0.00016973,2]
[399538468,1766463041154,-500.0,0.00016973,2]
[399538469,1766463041163,-500.0,0.00016973,2]
[399538470,1766463041172,-500.0,0.00016973,2]
[399538471,1766463041182,-500.0,0.00016973,2]
[399538472,1766463041191,-500.0,0.00016973,2]
[399538473,1766463041200,-150.0,0.00016973,2]
[399538474,1766463041210,-150.0,0.00016973,2]
[399538475,1766463041219,-217.97780546,0.00016983,2]
[399538476,1766463041228,-600.0,0.00016986,2]
[399538477,1766463041237,-24223.97,0.00016986,2]
[399538478,1766463041246,-215.0,0.00016987,2]
[399538479,1766463041255,-785.484978,0.0001699,2]
[399538480,1766463041265,-785.484978,0.0001699,2]
[399538481,1766463041275,-151.0,0.00016995,2]
[399538482,1766463041295,-165.4969409,0.00016997,2]
[399538483,1766463041306,-1500.0,0.00016998,2]
[399538484,1766463041315,-1500.0,0.00016998,2]
[399538485,1766463041325,-1500.0,0.00016998,2]
[399538486,1766463041334,-1500.0,0.00016998,2]
[399538487,1766463041343,-1500.0,0.00016998,2]
[399538488,1766463041352,-1500.0,0.00016998,2]
[399538489,1766463041363,-1500.0,0.00016998,2]
[399538490,1766463041373,-1500.0,0.00016998,2]
[399538491,1766463041382,-1500.0,0.00016998,2]
[399538492,1766463041392,-1500.0,0.00016998,5]
[399538493,1766463041401,-1500.0,0.00016998,2]
[399538494,1766463041410,-1500.0,0.00016998,2]
[399538495,1766463041419,-1500.0,0.00016998,2]
[399538496,1766463041428,-1500.0,0.00016998,2]
[399538497,1766463041438,-1500.0,0.00016998,2]
[399538498,1766463041447,-1500.0,0.00016998,2]
[399538499,1766463041456,-1500.0,0.00016998,2]
[399538500,1766463041466,-1500.0,0.00016998,2]
[399538501,1766463041475,-1500.0,0.00016998,2]
[399538502,1766463041484,-1500.0,0.00016998,5]
[399538503,1766463041493,-1500.0,0.00016998,2]
[399538504,1766463041502,-500.0,0.00016998,2]
[399538505,1766463041511,-1500.0,0.00016998,2]
[399538506,1766463041520,-1500.0,0.00016998,2]
[399538507,1766463041529,-1500.0,0.00016998,2]
[399538508,1766463041539,-1500.0,0.00016998,2]
[399538509,1766463041548,-1500.0,0.00016998,2]
[399538510,1766463041558,-1500.0,0.00016998,2]
[399538511,1766463041568,-1500.0,0.00016998,2]
[399538512,1766463041578,-1500.0,0.00016998,2]
[399538513,1766463041587,-1500.0,0.00016998,5]
[399538514,1766463041596,-756.67158664,0.00016998,2]
[399538515,1766463041607,-53037.8361123,0.00016999,2]
[399538516,1766463041616,-300.0,0.00016999,2]
[399538517,1766463041626,-666.0,0.00016999,2]
[399538518,1766463041637,-300.0,0.00016999,2]
[399538519,1766463041647,-666.0,0.00016999,2]
[399538520,1766463041657,-500.0,0.00016999,2]
[399538521,1766463041666,-500.0,0.00016999,2]
[399538522,1766463041675,-500.0,0.00016999,2]
[399538523,1766463041684,-500.0,0.00016999,2]
[399538524,1766463041694,-500.0,0.00016999,2]
[399538525,1766463041703,-610.06622025,0.00016999,2]
[399538526,1766463041711,-43134.9961582,0.00016999,2]
[399538527,1766463041721,-300.0,0.00016999,2]
[399538528,1766463041730,-2193.5387076,0.00016999,2]
[399538529,1766463041739,-300.0,0.00016999,2]
[399538530,1766463041748,-311.05061399,0.00016999,2]
[399538531,1766463041758,-150.0,0.00016999,2]
[399538532,1766463041767,-5336769.19307635,0.00017,2]
[399538533,1766463041776,-585278.25656187,0.00017,2]
[399538534,1766463041803,-495.68719811,0.00017,2]
[399538541,1766463042638,-493.10820163,0.00014708,2]
[399538542,1766463042647,-151.0,0.00015614,2]
[399538543,1766463042656,-44760.87645168,0.00017,2]
[399538544,1766463042692,-1908.94807662,0.00017,2]
[399538545,1766463042703,-2170.09,0.00017,2]
[399538546,1766463042713,-731.88568005,0.00017,2]
[399538547,1766463042748,-482.92950368,0.00016438,2]
[399538548,1766463042759,-259.7708922,0.00016438,2]
[399538549,1766463042770,-476.87960412,0.00016438,2]
[399538550,1766463042779,-2251.01545585,0.00017,2]
[399538551,1766463042790,-521.7277719,0.00017,2]
[399538552,1766463042800,-7883.64469327,0.00017,2]
[399538554,1766463045542,-769.79160068,0.00017,2]
[399538555,1766463045651,-959.66118939,0.00017,2]
[399538556,1766463045663,-1556.54727354,0.00017,2]
[399538557,1766463045674,-619.59135763,0.00017,2]
[399538558,1766463045705,-920.16531105,0.00017,2]
[399538559,1766463045798,-1031.79579359,0.00017,2]
[399538560,1766463045810,-14739.17794772,0.00017,2]
[399538561,1766463045821,-1155.39425,0.00017,2]